bitfinex/quotes_BTCUSD_20250527
["timestamp","ask_amount","ask_price","bid_price","bid_amount"]
[1748358859042,0.02143366,109370.0,109360.0,6.36316281]
[1748358859272,0.03057668,109370.0,109360.0,6.36316281]
[1748358859518,0.01229089,109370.0,109360.0,6.36316281]
[1748358859750,0.03057642,109370.0,109360.0,6.36316281]
[1748358859993,0.03057692,109370.0,109360.0,3.39807452]
[1748358860228,0.03057692,109370.0,109360.0,3.41636181]
[1748358860461,0.02143382,109370.0,109360.0,3.41636181]
[1748358860726,0.03057692,109370.0,109360.0,3.41636181]
[1748358860951,0.22258569,109370.0,109360.0,4.75608698]
[1748358861181,0.03057692,109370.0,109360.0,4.7652305]
[1748358861883,0.03057692,109370.0,109360.0,1.9460945]
[1748358862113,0.03057692,109370.0,109360.0,5.1646605]
[1748358862566,0.03057692,109370.0,109360.0,4.7883035]
[1748358863022,0.03057692,109370.0,109360.0,5.6182265]
[1748358863246,0.02143382,109370.0,109360.0,5.5914515]
[1748358863465,0.02143382,109370.0,109360.0,6.5932585]
[1748358863957,0.02143382,109370.0,109360.0,6.8897585]
[1748358864391,0.02143382,109370.0,109360.0,6.8305515]
[1748358864606,0.02143382,109370.0,109360.0,6.8897585]
[1748358864607,0.01229097,109370.0,109360.0,6.8897585]
[1748358864836,0.02143382,109370.0,109360.0,6.8897585]
[1748358865061,0.01229097,109370.0,109360.0,6.8897585]
[1748358865293,0.00314829,109370.0,109360.0,6.8897585]
[1748358865517,0.01229089,109370.0,109360.0,6.8897585]
[1748358866173,0.02143366,109370.0,109360.0,6.8897585]
[1748358866397,0.02143366,109370.0,109360.0,6.7057085]
[1748358866611,0.21344269,109370.0,109360.0,3.57764561]
[1748358866831,0.021434,109370.0,109360.0,3.87424792]
[1748358867039,0.03057719,109370.0,109360.0,3.95942192]
[1748358867249,0.21344269,109370.0,109360.0,3.89064792]
[1748358867467,0.03057719,109370.0,109360.0,4.03186792]
[1748358867679,0.03057719,109370.0,109360.0,5.21113092]
[1748358867906,0.21344269,109370.0,109360.0,5.25707192]
[1748358868085,0.03057719,109370.0,109360.0,5.25707192]
[1748358868336,0.03057719,109370.0,109360.0,5.25666292]
[1748358868552,0.021434,109370.0,109360.0,5.25666292]
[1748358868773,0.02143349,109370.0,109360.0,6.88951892]
[1748358868980,0.03057634,109370.0,109360.0,6.88951892]
[1748358869781,0.03057634,109370.0,109360.0,6.59301892]
[1748358870025,0.03971936,109370.0,109360.0,7.1821094]
[1748358870215,0.03057634,109370.0,109360.0,7.1821094]
[1748358871399,0.02143349,109370.0,109360.0,7.1821094]
[1748358871597,0.0397192,109370.0,109360.0,7.1821094]
[1748358872393,0.00314829,109370.0,109360.0,7.1820294]
[1748358872598,0.00314829,109370.0,109360.0,7.2451294]
[1748358872800,0.01229081,109370.0,109360.0,7.2451294]
[1748358874281,0.00314829,109370.0,109360.0,7.2451294]
[1748358875646,0.01229081,109370.0,109360.0,7.5416294]
[1748358875884,0.00314829,109370.0,109360.0,2.8944254]
[1748358876125,0.00314829,109370.0,109360.0,7.5416294]
[1748358876361,0.24643267,109390.0,109360.0,7.5416294]
[1748358876362,0.01114101,109390.0,109380.0,0.21027508]
[1748358876585,0.03856405,109390.0,109380.0,5.24783577]
[1748358876819,0.04770524,109390.0,109380.0,5.12001877]
[1748358877036,0.04770524,109390.0,109380.0,4.97437208]
[1748358877255,0.03856439,109390.0,109380.0,4.36805877]
[1748358877476,0.03956439,109390.0,109380.0,4.36805877]
[1748358877723,0.04056439,109390.0,109380.0,4.36805877]
[1748358877941,0.02228194,109390.0,109380.0,5.58405177]
[1748358878162,0.0314232,109390.0,109380.0,5.58878017]
[1748358878817,0.02228194,109390.0,109380.0,5.58878017]
[1748358879037,0.03142312,109390.0,109380.0,6.08790917]
[1748358879264,0.004,109390.0,109380.0,6.08790917]
[1748358879512,0.004,109390.0,109380.0,7.09291881]
[1748358879747,0.004,109390.0,109380.0,6.53646312]
[1748358879970,0.004,109390.0,109380.0,6.65757712]
[1748358880215,0.004,109390.0,109380.0,6.69061369]
[1748358880471,0.002,109390.0,109380.0,7.56857366]
[1748358880721,0.002,109390.0,109380.0,7.60175127]
[1748358880940,0.02278523,109400.0,109390.0,6.03137122]
[1748358881177,0.02278523,109400.0,109390.0,6.12242517]
[1748358881628,0.02278523,109400.0,109390.0,6.52242517]
[1748358882600,0.03855854,109410.0,109400.0,1.38644802]
[1748358882601,0.002,109410.0,109400.0,1.38644802]
[1748358882833,0.002,109410.0,109400.0,6.81837202]
[1748358883059,0.00214827,109410.0,109400.0,6.81837202]
[1748358883286,0.00214827,109410.0,109400.0,7.21837202]
[1748358883516,0.00214827,109410.0,109400.0,7.30942597]
[1748358883766,0.00214827,109410.0,109400.0,6.52470597]
[1748358884000,0.22150513,109410.0,109400.0,2.49032931]
[1748358884233,0.02956656,109410.0,109400.0,3.57825975]
[1748358884457,0.02956656,109410.0,109400.0,4.14112997]
[1748358884458,0.2306448,109410.0,109400.0,4.14112997]
[1748358884691,0.04784616,109410.0,109400.0,4.15027015]
[1748358885146,0.03870632,109410.0,109400.0,1.84276315]
[1748358885419,0.03870632,109410.0,109400.0,5.74745115]
[1748358885854,0.02956656,109410.0,109400.0,5.74745115]
[1748358886271,0.02956656,109410.0,109400.0,6.52300372]
[1748358886519,0.20322635,109410.0,109400.0,4.26756271]
[1748358886760,0.20322635,109410.0,109400.0,3.11256319]
[1748358887054,0.20322635,109410.0,109400.0,3.67815939]
[1748358887275,0.20322635,109410.0,109400.0,6.66379682]
[1748358887728,0.20322635,109410.0,109400.0,6.54326482]
[1748358887972,0.20322635,109410.0,109400.0,6.44422648]
[1748358888442,0.20322635,109410.0,109400.0,6.57491848]
[1748358888672,0.20322635,109410.0,109400.0,6.0276033]
[1748358889448,0.19408667,109410.0,109400.0,6.0773793]
[1748358889912,0.1847712,109430.0,109400.0,6.96957244]
[1748358890131,0.1847712,109430.0,109410.0,4.86510636]
[1748358890132,0.02741577,109420.0,109410.0,4.86510636]
[1748358890366,0.00913842,109420.0,109410.0,3.56129974]
[1748358890592,0.00913842,109420.0,109410.0,3.52017274]
[1748358890813,0.01827693,109420.0,109410.0,3.52017274]
[1748358891082,0.01827693,109420.0,109410.0,3.92017274]
[1748358891317,0.01827693,109420.0,109410.0,6.25807643]
[1748358891559,0.00913842,109420.0,109410.0,6.26007643]
[1748358892219,0.002,109430.0,109420.0,0.60395987]
[1748358892442,0.21016155,109440.0,109430.0,2.04526796]
[1748358892655,0.21016155,109440.0,109430.0,3.66832841]
[1748358892908,0.02741127,109440.0,109430.0,3.65770208]
[1748358893106,0.02741127,109440.0,109430.0,4.75989804]
[1748358893107,0.02741068,109440.0,109430.0,4.75989804]
[1748358893321,0.03654793,109440.0,109430.0,4.61947181]
[1748358893541,0.03654793,109440.0,109430.0,4.61332781]
[1748358893754,0.03654793,109440.0,109430.0,4.60696081]
[1748358893975,0.03654793,109440.0,109430.0,4.60234781]
[1748358894189,0.03654793,109440.0,109430.0,4.69207081]
[1748358894413,0.02741068,109440.0,109430.0,4.69207481]
[1748358894621,0.03654793,109440.0,109430.0,4.92882181]
[1748358894887,0.01827359,109440.0,109430.0,4.90361281]
[1748358895094,0.03654784,109440.0,109430.0,4.90361281]
[1748358895301,0.03654784,109440.0,109430.0,5.76241381]
[1748358895515,0.00913667,109440.0,109430.0,6.3018115]
[1748358895716,0.02741042,109440.0,109430.0,5.74535581]
[1748358896346,0.02741042,109440.0,109430.0,6.3018115]
[1748358896547,0.02741042,109440.0,109430.0,6.05148081]
[1748358896989,0.02741042,109440.0,109430.0,6.38852018]
[1748358897205,0.02741042,109440.0,109430.0,6.01481818]
[1748358897425,0.01827342,109440.0,109430.0,6.7011445]
[1748358897638,0.01827218,109450.0,109440.0,0.5501598]
[1748358897843,0.0365446,109450.0,109440.0,3.01924818]
[1748358898148,0.21927702,109450.0,109440.0,3.01011134]
[1748358898374,0.21927702,109450.0,109440.0,2.77389934]
[1748358898626,0.07382976,109460.0,109450.0,0.20100443]
[1748358898838,0.26568049,109460.0,109450.0,2.5840832]
[1748358899066,0.23278049,109460.0,109450.0,2.57494695]
[1748358899296,0.02790102,109460.0,109450.0,2.59321929]
[1748358899529,0.21061616,109460.0,109450.0,2.5840832]
[1748358899751,0.19185081,109460.0,109450.0,2.59321929]
[1748358899983,0.19585081,109460.0,109450.0,2.59321929]
[1748358900207,0.22325749,109460.0,109450.0,2.59321937]
[1748358900703,0.22325749,109460.0,109450.0,2.5840832]
[1748358900704,0.21412215,109460.0,109450.0,2.5840832]
[1748358900929,0.21412215,109460.0,109450.0,2.58892343]
[1748358901156,0.21512215,109460.0,109450.0,2.58892343]
[1748358901403,0.26598656,109460.0,109450.0,0.61058314]
[1748358901624,0.26598656,109460.0,109450.0,1.09966983]
[1748358901856,0.35904051,109460.0,109450.0,1.09966983]
[1748358902086,0.35904051,109460.0,109450.0,1.10471583]
[1748358902571,0.35904051,109460.0,109450.0,0.34484014]
[1748358902802,0.35904051,109460.0,109450.0,0.90129583]
[1748358903020,0.35904051,109460.0,109450.0,1.17205883]
[1748358903238,0.35904051,109460.0,109450.0,1.03657883]
[1748358903709,0.35904051,109460.0,109450.0,0.90129583]
[1748358903963,0.65396051,109460.0,109450.0,0.90129583]
[1748358904212,0.73783294,109460.0,109450.0,1.36708883]
[1748358904425,0.65396051,109460.0,109450.0,1.36708883]
[1748358904976,0.35904051,109460.0,109450.0,1.36708883]
[1748358905638,0.19485081,109460.0,109450.0,2.54072983]
[1748358905856,0.03040626,109460.0,109450.0,3.37624585]
[1748358906090,0.02127051,109460.0,109450.0,3.34976124]
[1748358906340,0.003,109460.0,109450.0,3.90329632]
[1748358906523,0.003,109460.0,109450.0,3.93559632]
[1748358906735,0.003,109460.0,109450.0,1.67078732]
[1748358906944,0.02740384,109470.0,109460.0,0.73095648]
[1748358907154,0.02740384,109470.0,109460.0,2.79214348]
[1748358907155,0.02755204,109470.0,109460.0,2.79214348]
[1748358907363,0.22851965,109470.0,109460.0,2.45417056]
[1748358907569,0.22852024,109470.0,109460.0,2.45417065]
[1748358907780,0.21025115,109470.0,109460.0,2.35255789]
[1748358907998,0.21025115,109470.0,109460.0,2.27031182]
[1748358908205,0.21325115,109470.0,109460.0,2.27944707]
[1748358908410,0.21725115,109470.0,109460.0,2.27944707]
[1748358908829,0.21725115,109470.0,109460.0,2.47171007]
[1748358909034,0.21725115,109470.0,109460.0,2.87171007]
[1748358909506,0.21725115,109470.0,109460.0,2.85343948]
[1748358909738,0.21725115,109470.0,109460.0,2.92956648]
[1748358910209,0.21725115,109470.0,109460.0,2.72858008]
[1748358910436,0.0071482,109470.0,109460.0,2.65129048]
[1748358910661,0.21921675,109480.0,109470.0,0.23276787]
[1748358910888,0.21921675,109480.0,109470.0,3.66701053]
[1748358911092,0.21008325,109480.0,109470.0,3.45205303]
[1748358911248,0.21008325,109480.0,109470.0,3.44291836]
[1748358911676,0.21008325,109480.0,109470.0,3.45020911]
[1748358911871,0.21008325,109480.0,109470.0,1.13093778]
[1748358912171,0.21208325,109480.0,109470.0,5.70193178]
[1748358912370,0.21208325,109480.0,109470.0,5.73496835]
[1748358912542,0.21408325,109480.0,109470.0,5.70193178]
[1748358912942,0.20494967,109480.0,109470.0,1.13093778]
[1748358913291,0.20494967,109480.0,109470.0,5.77814178]
[1748358913505,0.02226741,109480.0,109470.0,5.77814178]
[1748358913721,0.03140133,109480.0,109470.0,5.79641069]
[1748358913938,0.21535117,109480.0,109470.0,5.79641069]
[1748358914150,0.224485,109480.0,109470.0,5.79641086]
[1748358914362,0.21921759,109480.0,109470.0,5.79641086]
[1748358914569,0.21921759,109480.0,109470.0,5.76900711]
[1748358914812,0.20094984,109480.0,109470.0,3.57964935]
[1748358915018,0.01113267,109490.0,109480.0,4.87480975]
[1748358915226,0.02026559,109490.0,109480.0,3.63060383]
[1748358915427,0.02939867,109490.0,109480.0,3.63060383]
[1748358915631,0.02026559,109490.0,109480.0,4.03060383]
[1748358915844,0.21206375,109490.0,109480.0,4.01233675]
[1748358916070,0.21206425,109490.0,109480.0,2.60910367]
[1748358916292,0.21206425,109490.0,109480.0,3.10229925]
[1748358916598,0.02,109520.0,109510.0,0.62262547]
[1748358916822,0.21194903,109550.0,109540.0,0.34]
[1748358917042,0.20282128,109550.0,109540.0,1.04357908]
[1748358917273,0.20296948,109550.0,109540.0,1.04357908]
[1748358917503,0.49948948,109550.0,109540.0,0.52746034]
[1748358917759,0.53048948,109550.0,109540.0,0.45752634]
[1748358917987,0.56138948,109550.0,109540.0,0.45752634]
[1748358918242,0.56138948,109550.0,109540.0,0.35870275]
[1748358918480,0.1114584,109550.0,109540.0,0.91053783]
[1748358918677,0.20296948,109550.0,109540.0,2.76014283]
[1748358918885,0.20296948,109550.0,109540.0,2.75914283]
[1748358919531,0.20296948,109550.0,109540.0,3.53050391]
[1748358919805,0.19384148,109550.0,109540.0,3.52137483]
[1748358920012,0.19384148,109550.0,109540.0,2.91824783]
[1748358920194,0.19384148,109550.0,109540.0,2.84077883]
[1748358920392,0.19384148,109550.0,109540.0,2.84990791]
[1748358920592,0.19484148,109550.0,109540.0,3.01304491]
[1748358920751,0.19484148,109550.0,109540.0,2.93026491]
[1748358920960,0.17784148,109550.0,109540.0,2.92113583]
[1748358921155,0.18696973,109550.0,109540.0,3.13110402]
[1748358921360,0.20182127,109550.0,109540.0,3.11284661]
[1748358921541,0.20182127,109550.0,109540.0,3.34812352]
[1748358921760,0.20182127,109550.0,109540.0,3.39660052]
[1748358921971,0.001,109550.0,109540.0,5.56012177]
[1748358922196,0.001,109550.0,109540.0,6.14245685]
[1748358922446,0.001,109550.0,109540.0,5.71267572]
[1748358922661,0.01012758,109550.0,109540.0,5.71267572]
[1748358922868,0.001,109550.0,109540.0,5.70795938]
[1748358923064,0.001,109550.0,109540.0,6.29367638]
[1748358923273,0.2205766,109560.0,109550.0,0.20994903]
[1748358923525,0.03802823,109560.0,109550.0,5.38711577]
[1748358923687,0.22970401,109560.0,109550.0,5.38711577]
[1748358923891,0.01977374,109560.0,109550.0,5.78711577]
[1748358924111,0.02890108,109560.0,109550.0,5.78711577]
[1748358924526,0.02890108,109560.0,109550.0,5.78811577]
[1748358924740,0.02890108,109560.0,109550.0,5.78911577]
[1748358924929,0.01977357,109560.0,109550.0,6.30995085]
[1748358925135,0.02890057,109560.0,109550.0,6.05582358]
[1748358925339,0.00152,109560.0,109550.0,6.26577261]
[1748358925566,0.002,109570.0,109560.0,0.34]
[1748358925775,0.01112591,109570.0,109560.0,5.71796869]
[1748358925990,0.02025207,109570.0,109560.0,5.81288869]
[1748358926196,0.02025199,109570.0,109560.0,5.81288869]
[1748358926398,0.03850456,109570.0,109560.0,6.21288869]
[1748358926777,0.04763106,109570.0,109560.0,6.21288869]
[1748358927442,0.03850456,109570.0,109560.0,6.21288869]
[1748358927876,0.22103686,109570.0,109560.0,6.20376186]
[1748358928100,0.01825291,109570.0,109560.0,6.22201577]
[1748358928370,0.20991078,109570.0,109560.0,6.22201577]
[1748358928553,0.20991078,109570.0,109560.0,5.26559819]
[1748358929440,0.20991078,109570.0,109560.0,1.56568519]
[1748358929673,0.20991078,109570.0,109560.0,5.74273119]
[1748358929937,0.20991078,109570.0,109560.0,1.749723]
[1748358929938,0.25515821,109570.0,109560.0,1.749723]
[1748358930153,0.64085216,109570.0,109560.0,0.34]
[1748358930371,0.34621216,109570.0,109560.0,0.34]
[1748358930587,0.25337562,109560.0,109550.0,0.52083508]
[1748358930818,0.25339328,109550.0,109540.0,0.002]
[1748358931032,0.63980723,109550.0,109540.0,0.274609]
[1748358931288,0.63980723,109550.0,109540.0,0.360655]
[1748358931511,0.63980723,109550.0,109540.0,0.157508]
[1748358931724,0.63980723,109550.0,109540.0,0.002]
[1748358931945,0.68554545,109550.0,109540.0,0.002]
[1748358932167,0.63980723,109550.0,109540.0,0.003]
[1748358933034,0.34444723,109550.0,109540.0,0.003]
[1748358933265,0.63944723,109550.0,109540.0,0.86383508]
[1748358933483,0.31464723,109550.0,109540.0,2.34258708]
[1748358933697,0.19169328,109550.0,109540.0,1.11025465]
[1748358933921,0.19169328,109550.0,109540.0,1.07821808]
[1748358934605,0.19169328,109550.0,109540.0,0.73821808]
[1748358934815,0.25399328,109550.0,109540.0,1.07821808]
[1748358935067,0.23699328,109550.0,109540.0,1.07821808]
[1748358935277,0.24612153,109550.0,109540.0,1.07821808]
[1748358936099,0.33717548,109550.0,109540.0,0.557383]
[1748358937070,0.63169548,109550.0,109540.0,0.557383]
[1748358937675,0.71311987,109550.0,109540.0,0.557383]
[1748358937884,0.71311987,109550.0,109540.0,0.217383]
[1748358938086,0.41859987,109550.0,109540.0,0.004]
[1748358938432,0.71307987,109550.0,109540.0,0.004]
[1748358939608,0.71307987,109550.0,109540.0,0.003]
[1748358940269,0.71307987,109550.0,109540.0,0.002]
[1748358940855,0.71407987,109550.0,109540.0,0.002]
[1748358941312,0.71507987,109550.0,109540.0,0.002]
[1748358941534,0.71407987,109550.0,109540.0,0.002]
[1748358941760,0.71707987,109550.0,109540.0,0.002]
[1748358942213,0.70007987,109550.0,109540.0,0.002]
[1748358942690,0.71462072,109550.0,109540.0,0.002]
[1748358943656,0.71466072,109550.0,109540.0,0.002]
[1748358946882,0.42014072,109550.0,109540.0,0.002]
[1748358947096,0.61869548,109550.0,109540.0,0.52283508]
[1748358947312,0.32417548,109550.0,109540.0,0.52283508]
[1748358947529,0.61869548,109550.0,109540.0,0.002]
[1748358948089,0.32417548,109550.0,109540.0,0.52283508]
[1748358948331,0.32417548,109550.0,109540.0,0.86283508]
[1748358948332,0.55639548,109550.0,109540.0,0.86283508]
[1748358949282,0.53939548,109550.0,109540.0,0.86283508]
[1748358949495,0.24387548,109550.0,109540.0,0.86283508]
[1748358949697,0.53839548,109550.0,109540.0,0.86283508]
[1748358949899,0.53939548,109550.0,109540.0,0.86283508]
[1748358950301,0.24187548,109550.0,109540.0,1.50299308]
[1748358950572,0.53739548,109550.0,109540.0,1.53339308]
[1748358951209,0.24287548,109550.0,109540.0,1.53339308]
[1748358951418,0.53735548,109550.0,109540.0,1.53339308]
[1748358951632,0.24287548,109550.0,109540.0,1.53339308]
[1748358951842,0.53735548,109550.0,109540.0,1.53339308]
[1748358952275,0.24287548,109550.0,109540.0,1.53339308]
[1748358952488,0.53735548,109550.0,109540.0,1.53339308]
[1748358953597,0.53735548,109550.0,109540.0,1.50299308]
[1748358954943,0.24287548,109550.0,109540.0,1.50299308]
[1748358955625,0.53735548,109550.0,109540.0,1.50299308]
[1748358956395,0.52035548,109550.0,109540.0,0.342]
[1748358956615,0.58335548,109550.0,109540.0,0.342]
[1748358958247,0.28887548,109550.0,109540.0,0.342]
[1748358958432,0.58331548,109550.0,109540.0,0.342]
[1748358958933,0.58331548,109550.0,109540.0,0.002]
[1748358962551,0.65990187,109550.0,109540.0,0.002]
[1748358963417,0.56631548,109550.0,109540.0,0.002]
[1748358968758,0.92085633,109550.0,109540.0,0.002]
[1748358970735,0.61941633,109550.0,109540.0,0.002]
[1748358970958,1.00821633,109550.0,109540.0,0.002]
[1748358971378,0.91381633,109550.0,109540.0,0.002]
[1748358971589,0.57381633,109550.0,109540.0,0.002]
[1748358971805,0.6618928,109550.0,109540.0,0.002]
[1748358972249,0.6678928,109550.0,109540.0,0.002]
[1748358972479,0.56781633,109550.0,109540.0,0.002]
[1748358972706,0.56581633,109550.0,109540.0,0.002]
[1748358972928,0.56881633,109550.0,109540.0,0.002]
[1748358973425,0.27441633,109550.0,109540.0,0.002]
[1748358973628,0.56881633,109550.0,109540.0,0.002]
[1748358973886,0.6543928,109550.0,109540.0,0.002]
[1748358975342,0.9043928,109550.0,109540.0,0.002]
[1748358977622,0.8873928,109550.0,109540.0,0.002]
[1748358981285,1.2273928,109550.0,109540.0,0.002]
[1748358981493,0.8873928,109550.0,109540.0,0.002]
[1748358982954,0.8873528,109550.0,109540.0,0.002]
[1748358983161,0.6373528,109550.0,109540.0,0.002]
[1748358983978,0.3429928,109550.0,109540.0,0.002]
[1748358984176,0.6373128,109550.0,109540.0,0.002]
[1748358984763,0.6203128,109550.0,109540.0,0.002]
[1748358985374,0.53473633,109550.0,109540.0,0.002]
[1748358988596,0.53469633,109550.0,109540.0,0.002]
[1748358990978,0.72169633,109550.0,109540.0,0.002]
[1748358991140,0.47169633,109550.0,109540.0,0.002]
[1748358991763,0.55658633,109550.0,109540.0,0.002]
[1748358991963,0.50179633,109550.0,109540.0,0.002]
[1748358992176,0.5794408,109550.0,109540.0,0.002]
[1748358992643,0.5624408,109550.0,109540.0,0.002]
[1748358993630,0.5933408,109550.0,109540.0,0.002]
[1748358997169,1.61054051,109550.0,109540.0,0.002]
[1748358997399,1.57821899,109550.0,109540.0,0.002]
[1748358997629,0.95956368,109550.0,109540.0,0.002]
[1748358997904,0.91322008,109550.0,109540.0,0.002]
[1748358998314,0.79996606,109550.0,109540.0,0.002]
[1748358998531,0.84996606,109550.0,109540.0,0.002]
[1748358998746,1.18996606,109550.0,109540.0,0.002]
[1748358998965,1.23102001,109550.0,109540.0,0.002]
[1748358999182,1.26334236,109550.0,109540.0,0.002]
[1748358999394,1.26911215,109550.0,109540.0,0.002]
[1748358999611,1.4195606,109550.0,109540.0,0.002]
[1748358999822,1.4695606,109550.0,109540.0,0.002]
[1748359000571,0.19174562,109520.0,109510.0,0.56626686]
[1748359000793,0.32023397,109520.0,109510.0,0.0301482]
[1748359001020,0.32023397,109520.0,109510.0,0.0001482]
[1748359001463,0.35313397,109520.0,109510.0,0.0001482]
[1748359002124,0.36767482,109520.0,109510.0,0.0001482]
[1748359002354,0.39817482,109520.0,109510.0,0.0001482]
[1748359003726,0.36767482,109520.0,109510.0,0.0001482]
[1748359004211,0.35313397,109520.0,109510.0,0.55524719]
[1748359004426,0.63691957,109520.0,109510.0,0.0001482]
[1748359004655,0.57691957,109520.0,109510.0,0.0001482]
[1748359006410,0.57891957,109520.0,109510.0,0.0001482]
[1748359006629,0.67307136,109520.0,109510.0,0.0001482]
[1748359006851,0.68220194,109520.0,109510.0,0.0001482]
[1748359007295,0.19176313,109510.0,109500.0,0.58529899]
[1748359007520,0.28281708,109510.0,109500.0,0.58529899]
[1748359007766,0.19178065,109500.0,109490.0,0.68117899]
[1748359007985,0.32938123,109500.0,109490.0,0.58689899]
[1748359009059,0.32938123,109500.0,109490.0,0.59251263]
[1748359009267,0.32938123,109500.0,109490.0,0.93251263]
[1748359009500,0.32938123,109500.0,109490.0,0.59251263]
[1748359010575,0.32938123,109500.0,109490.0,0.93251263]
[1748359010791,0.2828346,109500.0,109490.0,0.93251263]
[1748359011015,0.2828346,109500.0,109490.0,0.96361263]
[1748359011747,0.2828346,109500.0,109490.0,0.37741364]
[1748359011962,0.2828346,109500.0,109490.0,0.93251263]
[1748359013080,0.2828346,109500.0,109490.0,0.92689899]
[1748359013718,0.2658346,109500.0,109490.0,0.92689899]
[1748359013941,0.27496685,109500.0,109490.0,0.92689899]
[1748359015336,0.27496685,109500.0,109490.0,0.95709899]
[1748359016187,0.27496685,109500.0,109490.0,0.34]
[1748359016413,0.30606685,109500.0,109490.0,0.34]
[1748359016644,0.30606685,109500.0,109480.0,0.585562]
[1748359016645,0.19179816,109490.0,109480.0,0.342]
[1748359016865,0.33172539,109490.0,109480.0,0.3735]
[1748359017082,0.62576539,109490.0,109480.0,0.92859899]
[1748359017299,0.57689211,109490.0,109480.0,1.10535402]
[1748359017950,0.28285211,109490.0,109480.0,1.10735402]
[1748359018171,0.19179816,109490.0,109480.0,5.18192571]
[1748359018386,0.19179816,109490.0,109480.0,2.5791532]
[1748359018594,0.19179816,109490.0,109480.0,2.02405421]
[1748359018809,0.23102001,109490.0,109480.0,1.80949421]
[1748359019027,0.19179816,109490.0,109480.0,1.90949421]
[1748359019532,0.19179816,109490.0,109480.0,2.68589121]
[1748359020387,0.19179816,109490.0,109480.0,3.02938221]
[1748359020817,0.17479816,109490.0,109480.0,3.77629696]
[1748359021022,0.18393124,109490.0,109480.0,3.77629696]
[1748359021238,0.18393124,109490.0,109480.0,3.81345735]
[1748359021460,0.20093099,109490.0,109480.0,5.46327071]
[1748359021678,0.20093099,109490.0,109480.0,4.9575852]
[1748359021905,0.20093099,109490.0,109480.0,1.75194421]
[1748359022128,0.49489099,109490.0,109480.0,0.57162]
[1748359022351,0.49489099,109490.0,109480.0,0.54012]
[1748359022352,0.6235161,109490.0,109480.0,0.54012]
[1748359022565,0.6235161,109490.0,109480.0,0.55471726]
[1748359023073,0.6235161,109490.0,109480.0,0.106]
[1748359023268,0.32298494,109490.0,109480.0,0.106]
[1748359023551,0.58590494,109490.0,109480.0,0.68912563]
[1748359023771,0.58590494,109490.0,109480.0,1.02909899]
[1748359023772,0.29198494,109490.0,109480.0,1.02909899]
[1748359023986,0.02739817,109490.0,109480.0,2.90927154]
[1748359024202,0.03653125,109490.0,109480.0,2.8812449]
[1748359024417,0.02739817,109490.0,109480.0,2.9753649]
[1748359024634,0.03653125,109490.0,109480.0,2.9753649]
[1748359024883,0.04566442,109490.0,109480.0,2.9753649]
[1748359025106,0.03653125,109490.0,109480.0,2.42026591]
[1748359025320,0.03653125,109490.0,109480.0,3.3753649]
[1748359025583,0.02739817,109490.0,109480.0,3.3753649]
[1748359025786,0.03653125,109490.0,109480.0,3.3753649]
[1748359026206,0.03653125,109490.0,109480.0,2.82026591]
[1748359026636,0.03653125,109490.0,109480.0,3.3753649]
[1748359026911,0.04566442,109490.0,109480.0,2.82026591]
[1748359027334,0.04566442,109490.0,109480.0,2.26516692]
[1748359027541,0.04566442,109490.0,109480.0,2.82026591]
[1748359027969,0.02739892,109490.0,109480.0,2.82026591]
[1748359028183,0.04566442,109490.0,109480.0,2.82026591]
[1748359028390,0.04566425,109490.0,109480.0,2.82026591]
[1748359028843,0.04566425,109490.0,109480.0,3.3753649]
[1748359029483,0.04566484,109490.0,109480.0,3.6627314]
[1748359029699,0.03653217,109490.0,109480.0,3.67724715]
[1748359029913,0.04566542,109490.0,109480.0,3.68638082]
[1748359030129,0.04566542,109490.0,109480.0,3.67186507]
[1748359030345,0.21006458,109490.0,109480.0,3.67186507]
[1748359030561,0.21006458,109490.0,109480.0,3.30387865]
[1748359031023,0.21006458,109490.0,109480.0,3.29474507]
[1748359031461,0.21006458,109490.0,109480.0,3.30927475]
[1748359032368,0.2009315,109490.0,109480.0,3.2818735]
[1748359032648,0.19179833,109490.0,109480.0,1.95917167]
[1748359032873,0.19179833,109490.0,109480.0,1.38211168]
[1748359033086,0.19179833,109490.0,109480.0,1.93721067]
[1748359033300,0.19179833,109490.0,109480.0,1.92268099]
[1748359033999,0.19179833,109490.0,109480.0,1.93721067]
[1748359034946,0.17479833,109490.0,109480.0,2.49230966]
[1748359035398,0.20093116,109490.0,109480.0,2.4275595]
[1748359035604,0.20093116,109490.0,109480.0,2.43669342]
[1748359035810,0.20093116,109490.0,109480.0,2.40589342]
[1748359036649,0.20093116,109490.0,109480.0,2.41502725]
[1748359037506,0.20093116,109490.0,109480.0,2.3967595]
[1748359037718,0.20093116,109490.0,109480.0,1.08561168]
[1748359037939,0.19179816,109490.0,109480.0,1.70453567]
[1748359038823,0.17478065,109500.0,109480.0,2.46871743]
[1748359039075,0.17478065,109500.0,109490.0,0.0316]
[1748359039303,0.19179816,109490.0,109480.0,1.16493144]
[1748359039518,0.20093116,109490.0,109480.0,2.07901435]
[1748359040009,0.19179816,109490.0,109480.0,2.06988052]
[1748359040467,0.19179816,109490.0,109480.0,2.63411351]
[1748359040696,0.18266508,109490.0,109480.0,2.33381067]
[1748359041382,0.18266508,109490.0,109480.0,2.52562643]
[1748359042028,0.16566508,109490.0,109480.0,2.52562643]
[1748359042504,0.16566508,109490.0,109480.0,2.51649243]
[1748359042943,0.16566508,109490.0,109480.0,2.33381067]
[1748359043394,0.16566508,109490.0,109480.0,1.85769979]
[1748359043621,0.16566508,109490.0,109480.0,1.08482811]
[1748359044528,0.19796508,109490.0,109480.0,1.08482811]
[1748359045608,0.23533965,109490.0,109480.0,1.42482811]
[1748359045825,0.19796508,109490.0,109480.0,1.42482811]
[1748359046067,0.19796508,109490.0,109480.0,0.86972912]
[1748359046254,0.19796508,109490.0,109480.0,1.42482811]
[1748359046471,0.19796508,109490.0,109480.0,1.41282211]
[1748359048229,0.28901903,109490.0,109480.0,0.34571712]
[1748359048449,0.37218264,109490.0,109480.0,0.34571712]
[1748359048686,0.40338264,109490.0,109480.0,0.34571712]
[1748359048912,0.40338264,109490.0,109480.0,0.34]
[1748359049156,0.38638264,109490.0,109480.0,0.34]
[1748359049383,0.38638264,109490.0,109470.0,0.01356196]
[1748359049384,0.25591568,109480.0,109470.0,0.01356196]
[1748359049609,0.69844946,109480.0,109470.0,0.01356196]
[1748359049838,0.69844946,109480.0,109460.0,0.65097899]
[1748359049839,0.1918332,109470.0,109460.0,0.65097899]
[1748359050111,0.1918332,109470.0,109460.0,0.99097899]
[1748359050637,0.34498715,109470.0,109460.0,0.91069709]
[1748359050850,0.31028715,109470.0,109460.0,0.91069709]
[1748359051071,0.31028715,109470.0,109460.0,0.92097906]
[1748359051533,0.31028715,109470.0,109460.0,0.92397906]
[1748359051762,0.31028715,109470.0,109460.0,0.58397906]
[1748359052010,0.31028715,109470.0,109460.0,0.92397906]
[1748359052250,0.36167869,109470.0,109460.0,0.92597906]